bitfinex/quotes_SOLUSD_20250518
["timestamp","ask_amount","ask_price","bid_price","bid_amount"]
[1747580555480,5.74887578,173.95,173.92,28.75486615]
[1747580555673,28.75486615,173.97,173.92,28.75486615]
[1747580556056,54.75486615,173.97,173.92,28.75486615]
[1747580556264,37.65952439,173.98,173.9,26.0]
[1747580556474,37.65952439,173.98,173.95,28.75486615]
[1747580556783,37.65952439,173.98,173.9,32.1011]
[1747580556963,37.65952439,173.98,173.94,28.75486615]
[1747580557470,66.41439054,173.98,173.94,28.75486615]
[1747580557671,37.65952439,173.98,173.94,28.75486615]
[1747580557867,5.74646592,174.02,173.9,66.6063412]
[1747580558065,5.74646592,174.02,173.97,28.75486615]
[1747580558265,34.50133207,174.02,173.97,28.75486615]
[1747580558472,5.74646592,174.02,173.97,28.75486615]
[1747580558674,106.34021529,174.11,174.0,28.75486615]
[1747580558675,91.78858549,174.08,174.0,28.75486615]
[1747580558971,28.75486615,174.03,173.98,28.75486615]
[1747580559281,28.75486615,174.06,174.01,28.75486615]
[1747580559578,28.75486615,174.04,173.95,26.0]
[1747580559758,28.75486615,174.06,174.02,28.75486615]
[1747580559963,28.75486615,174.07,174.02,28.75486615]
[1747580560775,5.74514535,174.06,174.02,28.75486615]
[1747580560954,5.74514535,174.06,174.03,28.75486615]
[1747580561154,20.10800873,174.06,173.95,50.39832882]
[1747580561356,20.10800873,174.06,174.02,28.75486615]
[1747580561586,20.10800873,174.06,173.96,19.79899955]
[1747580561790,48.86287488,174.06,174.01,28.75486615]
[1747580561975,28.75486615,174.05,174.01,28.75486615]
[1747580562163,28.75486615,174.05,173.95,53.22871944]
[1747580562364,5.74580556,174.04,173.95,53.22871944]
[1747580562560,5.74580556,174.04,174.0,28.75486615]
[1747580562887,5.74580556,174.04,173.98,28.75486615]
[1747580562888,20.11031946,174.04,173.98,28.75486615]
[1747580563068,48.86518561,174.04,173.94,26.0]
[1747580563264,28.75486615,174.03,173.98,28.75486615]
[1747580563462,28.75486615,174.03,173.94,26.0]
[1747580563681,28.75486615,174.02,173.94,26.0]
[1747580563861,28.75486615,174.02,173.97,28.75486615]
[1747580564064,20.11031946,174.04,173.92,1.7508]
[1747580564065,28.75486615,174.0,173.92,1.7508]
[1747580564358,28.75486615,174.03,173.92,27.7508]
[1747580564578,28.75486615,174.01,173.92,27.7508]
[1747580564787,28.75486615,174.01,173.96,28.75486615]
[1747580565867,28.75486615,174.02,173.97,28.75486615]
[1747580566073,28.75486615,174.03,173.98,28.75486615]
[1747580566575,5.74646592,174.02,173.98,28.75486615]
[1747580566791,34.50133207,174.02,173.97,28.75486615]
[1747580567205,48.86749687,174.02,173.97,28.75486615]
[1747580567687,20.11263072,174.02,173.98,28.75486615]
[1747580567889,5.74646592,174.02,173.99,28.75486615]
[1747580568195,5.74580556,174.04,174.01,28.75486615]
[1747580568383,5.7448153,174.07,174.03,28.75486615]
[1747580568695,40.36145016,174.08,174.04,28.75486615]
[1747580568891,5.74415532,174.09,174.05,28.75486615]
[1747580569098,5.74415532,174.09,174.0,28.75486615]
[1747580569099,5.74415532,174.09,174.06,28.75486615]
[1747580569399,5.74415532,174.09,174.07,28.75486615]
[1747580569561,5.74415532,174.09,174.08,28.75486615]
[1747580569772,5.74283581,174.13,174.08,28.75486615]
[1747580569966,5.74283581,174.13,174.03,26.0]
[1747580569967,4.74283581,174.13,174.09,28.75486615]
[1747580570189,19.09992534,174.13,174.03,26.0]
[1747580570389,28.75486615,174.12,174.07,28.75486615]
[1747580570595,47.85479149,174.13,174.08,28.75486615]
[1747580570762,28.75486615,174.11,174.02,1.7335]
[1747580570968,28.75486615,174.09,174.05,28.75486615]
[1747580571168,28.75486615,174.1,174.05,28.75486615]
[1747580571368,28.75486615,174.09,174.04,28.75486615]
[1747580571794,28.75486615,174.07,173.99,6.0837]
[1747580571973,28.75486615,174.06,174.01,28.75486615]
[1747580572175,28.75486615,174.04,173.97,1.7335]
[1747580572478,28.75486615,174.04,173.99,28.75486615]
[1747580572688,5.74613572,174.03,173.99,28.75486615]
[1747580572876,5.74613572,174.03,174.0,28.75486615]
[1747580573273,5.74613572,174.03,173.99,28.75486615]
[1747580573691,48.86634117,174.03,173.96,21.46]
[1747580573874,28.75486615,174.02,173.97,28.75486615]
[1747580574377,28.75486615,174.02,173.95,6.0837]
[1747580574378,28.75486615,174.01,173.96,28.75486615]
[1747580574582,5.74679616,174.01,173.97,28.75486615]
[1747580575294,5.74679616,174.01,173.94,28.75486615]
[1747580575295,28.75486615,173.99,173.94,28.75486615]
[1747580575501,28.75486615,174.0,173.95,28.75486615]
[1747580575701,48.86865271,174.01,173.96,28.75486615]
[1747580576199,48.86865271,174.01,173.92,1.6679]
[1747580576200,28.75486615,174.0,173.95,28.75486615]
[1747580576875,5.74745675,173.99,173.95,28.75486615]
[1747580578206,5.74745675,173.99,173.92,1.6679]
[1747580578207,34.5023229,173.99,173.92,1.6679]
[1747580578383,5.74745675,173.99,173.95,28.75486615]
[1747580578593,5.74745675,173.99,173.96,28.75486615]
[1747580579098,5.74745675,173.99,173.95,28.75486615]
[1747580579406,48.87096477,173.99,173.94,28.75486615]
[1747580579776,5.74745675,173.99,173.95,28.75486615]
[1747580580690,34.5023229,173.99,173.92,1.6679]
[1747580581003,5.74745675,173.99,173.95,28.75486615]
[1747580581201,48.87096477,173.99,173.92,1.6679]
[1747580581406,28.75486615,173.97,173.92,28.75486615]
[1747580581628,28.75486615,173.98,173.93,28.75486615]
[1747580581904,20.11609862,173.99,173.94,28.75486615]
[1747580582223,28.75486615,173.96,173.91,28.75486615]
[1747580582422,28.75486615,173.95,173.88,1.6812]
[1747580582591,28.75486615,173.93,173.87,6.3665]
[1747580582801,28.75486615,173.93,173.88,28.75486615]
[1747580583006,34.50463615,173.92,173.87,6.3665]
[1747580583327,28.75486615,173.88,173.78,8.0477]
[1747580583607,28.75486615,173.86,173.81,28.75486615]
[1747580583981,28.75486615,173.86,173.78,8.0477]
[1747580583982,28.67209272,173.86,173.78,8.0477]
[1747580584180,28.75486615,173.84,173.78,8.0477]
[1747580584384,54.75486615,173.82,173.74,14.36914809]
[1747580584590,54.75486615,173.82,173.76,28.75486615]
[1747580584591,28.75486615,173.81,173.76,28.75486615]
[1747580584802,28.75486615,173.8,173.75,28.75486615]
[1747580585197,26.0,173.81,173.79,28.75486615]
[1747580585399,26.0,173.81,173.74,6.3665]
[1747580585400,26.0,173.81,173.78,28.75486615]
[1747580585723,26.0,173.81,173.77,28.75486615]
[1747580586004,20.13345604,173.84,173.79,28.75486615]
[1747580586207,31.75241601,173.84,173.8,28.75486615]
[1747580586407,26.0,173.86,173.83,28.75486615]
[1747580586701,28.75486615,173.89,173.85,28.75486615]
[1747580586908,34.50562812,173.89,173.85,28.75486615]
[1747580587112,31.75076197,173.89,173.85,28.75486615]
[1747580587409,28.75486615,173.88,173.79,21.46]
[1747580587615,28.75486615,173.88,173.83,28.75486615]
[1747580588097,28.75486615,173.87,173.79,21.46]
[1747580588281,54.75486615,173.83,173.73,1.6812]
[1747580588484,54.75486615,173.83,173.78,28.75486615]
[1747580588682,28.75486615,173.86,173.81,28.75486615]
[1747580588904,54.75486615,173.84,173.79,28.75486615]
[1747580589108,34.50761308,173.83,173.78,28.75486615]
[1747580589417,28.75486615,173.79,173.73,1.6812]
[1747580589721,28.75486615,173.79,173.7,12.05200854]
[1747580589888,28.75486615,173.78,173.7,6.2951]
[1747580590088,26.0,173.8,173.7,6.2951]
[1747580590284,28.75486615,173.76,173.69,1.7881]
[1747580590488,28.75486615,173.74,173.66,18.64964886]
[1747580590702,26.0,173.76,173.7,28.75486615]
[1747580590909,28.75486615,173.8,173.65,8.65774559]
[1747580590910,28.75486615,173.74,173.65,8.65774559]
[1747580591098,5.75638959,173.72,173.65,30.19774559]
[1747580591890,5.75638959,173.72,173.69,28.75486615]
[1747580592089,5.75638959,173.72,173.65,30.19774559]
[1747580592402,31.75638959,173.72,173.65,0.57454559]
[1747580592804,31.75638959,173.72,173.68,28.75486615]
[1747580593000,31.75638959,173.72,173.7,28.75486615]
[1747580593321,31.75638959,173.72,173.68,28.75486615]
[1747580593520,28.75486615,173.71,173.65,0.57454559]
[1747580593697,28.75486615,173.7,173.65,0.57454559]
[1747580593901,28.75486615,173.69,173.65,0.57454559]
[1747580594217,28.75486615,173.66,173.65,0.57454559]
[1747580594519,20.14736357,173.72,173.62,28.75486615]
[1747580594520,26.0,173.67,173.62,28.75486615]
[1747580594818,26.0,173.71,173.66,28.75486615]
[1747580595018,26.0,173.71,173.67,28.75486615]
[1747580595229,26.0,173.71,173.66,28.75486615]
[1747580595230,5.75705238,173.7,173.66,28.75486615]
[1747580595522,5.75705238,173.7,173.63,22.22]
[1747580595722,20.14968335,173.7,173.63,22.22]
[1747580595922,48.9045495,173.7,173.65,28.75486615]
[1747580596136,20.14968335,173.7,173.66,28.75486615]
[1747580596346,48.9045495,173.7,173.65,28.75486615]
[1747580596626,20.14968335,173.7,173.63,22.22]
[1747580596833,5.75705238,173.7,173.69,28.75486615]
[1747580597204,5.75705238,173.7,173.67,28.75486615]
[1747580597403,34.51191853,173.7,173.65,28.75486615]
[1747580597629,20.14968335,173.7,173.66,28.75486615]
[1747580597931,5.75705238,173.7,173.66,28.75486615]
[1747580598231,5.75705238,173.7,173.68,28.75486615]
[1747580598433,20.14297595,173.76,173.69,28.75486615]
[1747580598630,20.14297595,173.76,173.63,29.13075472]
[1747580598631,26.0,173.74,173.7,28.75486615]
[1747580598813,26.0,173.74,173.64,1.654]
[1747580599127,5.75605825,173.73,173.7,28.75486615]
[1747580599309,5.75605825,173.73,173.64,7.41290541]
[1747580599310,34.5109244,173.73,173.68,28.75486615]
[1747580600041,48.90107002,173.73,173.69,28.75486615]
[1747580600240,5.75605825,173.73,173.71,28.75486615]
[1747580600441,5.75605825,173.73,173.7,28.75486615]
[1747580601108,5.75605825,173.73,173.71,28.75486615]
[1747580601432,5.75605825,173.73,173.72,28.75486615]
[1747580601737,43.14274278,173.76,173.72,28.75486615]
[1747580601738,26.0,173.76,173.72,28.75486615]
[1747580602044,5.75440211,173.78,173.75,28.75486615]
[1747580602231,5.75340889,173.81,173.77,28.75486615]
[1747580602405,5.75340889,173.81,173.71,23.47109316]
[1747580602708,48.89179727,173.81,173.76,28.75486615]
[1747580602908,26.0,173.78,173.71,22.32]
[1747580603138,26.0,173.78,173.74,28.75486615]
[1747580603306,5.75473326,173.77,173.71,22.32]
[1747580603639,5.75473326,173.77,173.74,28.75486615]
[1747580603808,5.75473326,173.77,173.73,28.75486615]
[1747580604208,34.50959941,173.77,173.72,28.75486615]
[1747580604535,48.89643258,173.77,173.69,22.34]
[1747580604737,48.89643258,173.77,173.72,28.75486615]
[1747580605545,48.89643258,173.77,173.67,48.44]
[1747580605843,20.14156643,173.77,173.73,28.75486615]
[1747580606042,20.14156643,173.77,173.67,28.19801245]
[1747580606230,20.14156643,173.77,173.73,28.75486615]
[1747580606413,5.75473326,173.77,173.75,28.75486615]
[1747580606612,5.75473326,173.77,173.76,28.75486615]
[1747580606811,5.754071,173.79,173.76,28.75486615]
[1747580607021,5.754071,173.79,173.78,28.75486615]
[1747580607536,14.38211213,173.83,173.78,28.75486615]
[1747580607537,26.0,173.82,173.78,28.75486615]
[1747580607740,26.0,173.82,173.79,28.75486615]
[1747580607912,20.13485906,173.83,173.79,28.75486615]
[1747580608307,26.0,173.82,173.74,22.4]
[1747580608640,26.0,173.82,173.78,28.75486615]
[1747580609043,5.75274693,173.83,173.8,28.75486615]
[1747580609346,5.75274693,173.83,173.81,28.75486615]
[1747580610053,5.75274693,173.83,173.82,28.75486615]
[1747580610541,5.7510927,173.88,173.82,28.75486615]
[1747580610713,5.7510927,173.88,173.84,28.75486615]
[1747580611130,31.7510927,173.88,173.84,28.75486615]
[1747580611332,5.7510927,173.88,173.84,28.75486615]
[1747580611527,31.7510927,173.88,173.84,28.75486615]
[1747580611732,31.7510927,173.88,173.85,28.75486615]
[1747580611928,5.7510927,173.88,173.87,28.75486615]
[1747580612372,5.7510927,173.88,173.81,23.45029081]
[1747580612539,5.7510927,173.88,173.81,22.3]
[1747580612741,60.50595885,173.88,173.81,22.3]
[1747580612939,60.50595885,173.88,173.81,28.75486615]
[1747580612940,28.75486615,173.86,173.81,28.75486615]
[1747580613241,28.75486615,173.87,173.82,28.75486615]
[1747580613751,28.75486615,173.85,173.76,22.34]
[1747580613954,28.75486615,173.85,173.8,28.75486615]
[1747580614263,28.75486615,173.85,173.76,44.64]
[1747580614562,54.75486615,173.85,173.8,28.75486615]
[1747580615069,28.75486615,173.81,173.75,6.0392]
[1747580615234,28.75486615,173.81,173.77,28.75486615]
[1747580615758,5.754071,173.79,173.75,28.75486615]
[1747580615944,5.754071,173.79,173.76,28.75486615]
[1747580617157,5.75274693,173.83,173.78,28.75486615]
[1747580617358,5.75274693,173.83,173.73,8.54720383]
[1747580617359,5.75274693,173.83,173.82,28.75486615]
[1747580617547,5.75274693,173.83,173.8,28.75486615]
[1747580617750,5.75241601,173.84,173.74,24.4051589]
[1747580617950,5.75241601,173.84,173.8,28.75486615]
[1747580618159,5.75241601,173.84,173.81,28.75486615]
[1747580618736,5.75241601,173.84,173.75,1.15067841]
[1747580618950,5.75241601,173.84,173.81,28.75486615]
[1747580619158,5.75241601,173.84,173.82,28.75486615]
[1747580619346,5.75215865,173.85,173.83,28.75486615]
[1747580620035,31.75215865,173.85,173.83,28.75486615]
[1747580620236,14.37729485,173.89,173.84,28.75486615]
[1747580620543,26.0,173.88,173.84,28.75486615]
[1747580620740,31.7510927,173.88,173.84,28.75486615]
[1747580620948,31.7510927,173.88,173.85,28.75486615]
[1747580621358,31.7510927,173.88,173.84,28.75486615]
[1747580621960,31.7510927,173.88,173.8,6.375]
[1747580622161,31.7510927,173.88,173.84,28.75486615]
[1747580622373,31.7510927,173.88,173.86,28.75486615]
[1747580622959,14.37407774,173.93,173.87,28.75486615]
[1747580622960,5.74977,173.92,173.87,28.75486615]
[1747580623147,5.74977,173.92,173.88,28.75486615]
[1747580623148,26.0,173.91,173.88,28.75486615]
[1747580623560,5.74977,173.92,173.89,28.75486615]
[1747580623879,28.75486615,173.94,173.91,28.75486615]
[1747580623880,5.74910888,173.94,173.91,28.75486615]
[1747580624036,48.87674725,173.94,173.89,28.75486615]
[1747580624440,28.75486615,173.93,173.89,28.75486615]
[1747580625166,48.87674725,173.94,173.89,28.75486615]
[1747580625343,20.1218811,173.94,173.9,28.75486615]
[1747580625943,48.87674725,173.94,173.89,28.75486615]
[1747580626666,48.87674725,173.94,173.9,28.75486615]
[1747580627577,48.87674725,173.94,173.85,22.1]
[1747580627748,28.75486615,173.92,173.87,28.75486615]
[1747580628448,5.75010062,173.91,173.83,1.15014882]
[1747580628651,5.75010062,173.91,173.86,28.75486615]
[1747580628652,34.50496677,173.91,173.86,28.75486615]
[1747580628852,48.88021833,173.91,173.86,28.75486615]
[1747580630163,20.12535218,173.91,173.84,28.75486615]
[1747580630469,28.75486615,173.89,173.84,28.75486615]
[1747580630766,20.12535218,173.91,173.84,28.75486615]
[1747580630943,28.75486615,173.9,173.85,28.75486615]
[1747580631761,48.88021833,173.91,173.86,28.75486615]
[1747580631965,48.88021833,173.91,173.82,1.6622]
[1747580631966,28.75486615,173.89,173.82,1.6622]
[1747580632170,5.7510927,173.88,173.84,28.75486615]
[1747580632639,5.7510927,173.88,173.82,1.6622]
[1747580632844,5.7510927,173.88,173.84,28.75486615]
[1747580633040,28.75486615,173.87,173.8,6.375]
[1747580633242,20.12882446,173.88,173.82,28.75486615]
[1747580633440,20.12882446,173.88,173.83,28.75486615]
[1747580633660,48.88369061,173.88,173.83,28.75486615]
[1747580633869,20.12882446,173.88,173.84,28.75486615]
[1747580634067,20.12882446,173.88,173.8,6.375]
[1747580634271,20.12882446,173.88,173.84,28.75486615]
[1747580634474,5.7510927,173.88,173.85,28.75486615]
[1747580634678,31.75084052,173.89,173.87,28.75486615]
[1747580634973,31.75084052,173.89,173.8,42.03394865]
[1747580635163,28.75486615,173.88,173.8,6.375]
[1747580635370,28.75486615,173.88,173.83,28.75486615]
[1747580635674,28.75486615,173.87,173.82,28.75486615]
[1747580635876,28.75486615,173.87,173.8,6.375]
[1747580636175,28.75486615,173.87,173.82,28.75486615]
[1747580636354,5.7510927,173.88,173.84,28.75486615]
[1747580636674,5.7510927,173.88,173.8,35.12986615]
[1747580636878,5.7510927,173.88,173.87,28.75486615]
[1747580637173,5.75085751,173.89,173.87,28.75486615]
[1747580637771,5.75085751,173.89,173.86,28.75486615]
[1747580638575,5.75043128,173.9,173.87,28.75486615]
[1747580638873,14.37080329,173.97,173.89,28.75486615]
[1747580639049,28.75486615,173.95,173.9,28.75486615]
[1747580639256,26.0,173.94,173.9,28.75486615]
[1747580639576,28.75486615,173.96,173.91,28.75486615]
[1747580640072,5.74811749,173.97,173.94,28.75486615]
[1747580640262,5.74811749,173.97,173.95,28.75486615]
[1747580640448,5.74811749,173.97,173.94,28.75486615]
[1747580640866,5.74811749,173.97,173.93,28.75486615]
[1747580641273,5.74811749,173.97,173.94,28.75486615]
[1747580641772,5.7477871,173.98,173.94,28.75486615]
[1747580641976,5.7477871,173.98,173.9,5.75037849]
[1747580641977,26.0,173.97,173.96,28.75486615]
[1747580642152,5.7477871,173.98,173.96,28.75486615]
[1747580642479,5.74679616,174.01,173.97,28.75486615]
[1747580642699,5.74679616,174.01,174.0,28.75486615]
[1747580643355,5.74547543,174.05,174.0,28.75486615]
[1747580643554,5.74547543,174.05,174.02,28.75486615]
[1747580643754,5.74514535,174.06,174.02,28.75486615]
[1747580644054,5.74448529,174.08,174.05,28.75486615]
[1747580644661,5.74421917,174.09,174.06,28.75486615]
[1747580644875,34.49908532,174.09,174.04,28.75486615]
[1747580645076,28.75486615,174.05,173.96,28.2992]
[1747580645282,28.75486615,174.03,173.96,28.2992]
[1747580645592,28.75486615,174.03,173.98,28.75486615]
[1747580645761,5.74679616,174.01,173.97,28.75486615]
[1747580646091,5.74679616,174.01,173.96,28.2992]
[1747580646251,5.74679616,174.01,173.97,28.75486615]
[1747580646756,5.74613572,174.03,174.0,28.75486615]
[1747580647084,5.74613572,174.03,173.98,28.75486615]
[1747580647261,28.75486615,174.02,173.97,28.75486615]
[1747580647780,5.74712643,174.0,173.96,28.75486615]
[1747580648078,31.74676968,174.02,173.98,28.75486615]
[1747580648258,5.74676968,174.02,173.99,28.75486615]
[1747580648661,5.74676968,174.02,173.98,28.75486615]
[1747580648891,5.74676968,174.02,173.93,21.74]
[1747580649059,28.75486615,174.01,173.93,21.74]
[1747580649372,26.0,174.01,173.96,28.75486615]
[1747580649569,54.75486615,174.01,173.93,21.74]
[1747580649871,54.75486615,174.01,173.96,28.75486615]
[1747580650189,5.74712643,174.0,173.97,28.75486615]
[1747580650785,28.75486615,173.99,173.92,6.4842]
[1747580651083,28.75486615,173.99,173.93,28.75486615]
[1747580651269,28.75486615,173.99,173.91,23.6222]
[1747580651270,28.75486615,173.97,173.92,28.75486615]
[1747580651471,28.75486615,173.96,173.91,28.75486615]
[1747580651781,26.0,173.97,173.92,28.75486615]
[1747580651955,26.0,173.97,173.9,21.72]
[1747580651956,26.0,173.97,173.93,28.75486615]
[1747580652357,5.74844791,173.96,173.93,28.75486615]
[1747580652558,5.74844791,173.96,173.94,28.75486615]
[1747580652758,5.74844791,173.96,173.93,28.75486615]
[1747580652971,5.74844791,173.96,173.92,28.75486615]
[1747580653393,5.74844791,173.96,173.93,28.75486615]
[1747580654371,34.50331406,173.96,173.91,28.75486615]
[1747580654554,48.87443385,173.96,173.91,28.75486615]
[1747580654758,28.75486615,173.95,173.9,28.75486615]
[1747580654956,48.87443385,173.96,173.91,28.75486615]
[1747580655365,48.87443385,173.96,173.88,6.388]
[1747580655564,48.87443385,173.96,173.91,28.75486615]
[1747580655767,5.74844791,173.96,173.93,28.75486615]
[1747580655963,31.748192,173.97,173.95,28.75486615]
[1747580656384,31.748192,173.97,173.92,28.75486615]
[1747580656584,28.75486615,173.95,173.87,1.6422]
[1747580656773,28.75486615,173.95,173.9,28.75486615]
[1747580657278,28.75486615,173.94,173.89,28.75486615]
[1747580657582,28.75486615,173.95,173.9,28.75486615]
[1747580658489,5.74910888,173.94,173.91,28.75486615]
[1747580658689,5.74844791,173.96,173.93,28.75486615]
[1747580659697,20.1195677,173.96,173.92,28.75486615]
[1747580660697,5.74844791,173.96,173.93,28.75486615]
[1747580661291,5.74844791,173.96,173.92,28.75486615]
[1747580661471,5.74844791,173.96,173.94,28.75486615]
[1747580661673,5.74844791,173.96,173.92,28.75486615]
[1747580661879,5.74844791,173.96,173.87,7.393541]
[1747580662095,5.74844791,173.96,173.92,28.75486615]
[1747580662672,5.74844791,173.96,173.87,7.393541]
[1747580662993,34.50331406,173.96,173.91,28.75486615]
[1747580663697,34.50331406,173.96,173.87,7.393541]
[1747580663896,28.75486615,173.94,173.87,1.6422]
[1747580664196,28.75486615,173.93,173.88,28.75486615]
[1747580664603,5.74977,173.92,173.88,28.75486615]
[1747580664895,34.50463615,173.92,173.87,28.75486615]
[1747580665103,34.50463615,173.92,173.89,28.75486615]
[1747580665104,5.74977,173.92,173.89,28.75486615]
[1747580665766,5.74951019,173.93,173.91,28.75486615]
[1747580665967,5.74951019,173.93,173.91,27.75486615]
[1747580666168,34.50437634,173.93,173.88,28.75486615]
[1747580666387,28.75486615,173.92,173.87,28.75486615]
[1747580666600,5.75010062,173.91,173.87,28.75486615]
[1747580666903,5.75010062,173.91,173.86,28.75486615]
[1747580667079,5.75010062,173.91,173.87,28.75486615]
[1747580667276,5.75010062,173.91,173.84,6.388]
[1747580667515,28.75486615,173.9,173.81,69.2]
[1747580668037,28.75486615,173.9,173.85,28.75486615]
[1747580668210,28.75486615,173.9,173.81,69.2]
[1747580668410,47.40451501,173.89,173.84,28.75486615]
[1747580668743,28.75486615,173.86,173.81,28.75486615]
[1747580668941,28.75486615,173.86,173.79,29.9021]
[1747580668942,48.88484831,173.87,173.82,28.75486615]
[1747580670233,48.88484831,173.87,173.77,21.52]
[1747580670234,28.75486615,173.85,173.77,21.52]
[1747580670443,28.75486615,173.85,173.76,69.22]
[1747580670739,5.75241601,173.84,173.8,28.75486615]
[1747580671141,5.75175428,173.86,173.83,28.75486615]
[1747580672145,5.75010062,173.91,173.85,28.75486615]
[1747580672310,5.75010062,173.91,173.89,28.75486615]
[1747580672634,28.75486615,173.95,173.9,28.75486615]
[1747580672829,5.74910888,173.94,173.9,28.75486615]
[1747580673031,5.74910888,173.94,173.91,28.75486615]
[1747580674137,5.74877838,173.95,173.91,28.75486615]
[1747580674432,28.75486615,173.94,173.89,28.75486615]
[1747580674654,28.75486615,173.93,173.85,26.0]
[1747580674935,28.75486615,173.92,173.87,28.75486615]
[1747580675128,54.75486615,173.92,173.87,28.75486615]
[1747580675503,28.75486615,173.9,173.85,28.75486615]
[1747580675709,28.75486615,173.89,173.84,28.75486615]
[1747580675933,28.75486615,173.88,173.83,28.75486615]
[1747580676109,5.75142347,173.87,173.83,28.75486615]
[1747580676317,5.75142347,173.87,173.85,28.75486615]
[1747580676515,5.75142347,173.87,173.8,42.19094856]
[1747580676719,5.75142347,173.87,173.84,28.75486615]
[1747580677235,28.75486615,173.9,173.85,28.75486615]
[1747580677450,5.75043128,173.9,173.87,28.75486615]
[1747580677735,5.75043128,173.9,173.88,28.75486615]
[1747580678115,5.74977,173.92,173.88,28.75486615]
[1747580679323,5.75043128,173.9,173.88,28.75486615]
[1747580679636,3.1,173.91,173.89,28.75486615]
[1747580679831,3.1,173.91,173.9,28.75486615]
[1747580680031,8.85010062,173.91,173.9,28.75486615]
[1747580680736,3.1,173.91,173.9,28.75486615]
[1747580681334,5.74877838,173.95,173.9,28.75486615]
[1747580681540,48.87559049,173.95,173.9,28.75486615]
[1747580681715,28.75486615,173.93,173.88,28.75486615]
[1747580681911,28.75486615,173.93,173.84,47.7]
[1747580682146,18.64964886,173.94,173.86,28.75486615]
[1747580682147,28.75486615,173.91,173.86,28.75486615]
[1747580682535,28.75486615,173.91,173.81,31.75340177]
[1747580682734,26.0,173.92,173.86,28.75486615]
[1747580683042,54.75486615,173.92,173.87,28.75486615]
[1747580683237,53.15461563,173.91,173.86,28.75486615]
[1747580684250,38.77500104,173.91,173.86,28.75486615]
[1747580684454,67.52986719,173.91,173.86,28.75486615]
[1747580684626,38.77500104,173.91,173.87,28.75486615]
[1747580685243,20.12535218,173.91,173.87,28.75486615]
[1747580685449,20.12535218,173.91,173.88,28.75486615]
[1747580685846,20.12535218,173.91,173.82,21.52]
[1747580686065,48.88021833,173.91,173.86,28.75486615]
[1747580686555,20.12535218,173.91,173.87,28.75486615]
[1747580687639,5.75010062,173.91,173.87,28.75486615]
[1747580688657,7.0,173.9,173.87,28.75486615]
[1747580689152,5.75010062,173.91,173.87,28.75486615]
[1747580690152,31.74986723,173.92,173.88,28.75486615]
[1747580690349,31.74986723,173.92,173.89,28.75486615]
[1747580690677,5.74877838,173.95,173.91,28.75486615]
[1747580690972,5.74877838,173.95,173.92,28.75486615]
[1747580692161,5.74877838,173.95,173.93,28.75486615]
[1747580692561,5.7477871,173.98,173.94,28.75486615]
[1747580692764,31.7477871,173.98,173.94,28.75486615]
[1747580692958,60.50265325,173.98,173.94,28.75486615]
[1747580693270,5.7477871,173.98,173.96,28.75486615]
[1747580693638,5.74613572,174.03,173.97,28.75486615]
[1747580693840,5.74613572,174.03,174.0,28.75486615]
[1747580694040,5.74613572,174.03,173.99,28.75486615]
[1747580694769,5.74613572,174.03,174.0,28.75486615]
[1747580695972,5.74448529,174.08,174.02,28.75486615]
[1747580696140,5.74448529,174.08,173.98,8.3042]
[1747580696141,5.74448529,174.08,174.04,28.75486615]
[1747580696341,34.49935144,174.08,174.03,28.75486615]
[1747580696539,34.49935144,174.08,173.98,14.05193068]
[1747580696770,28.75486615,174.07,174.02,28.75486615]
[1747580697070,20.10569852,174.08,174.01,28.75486615]
[1747580697256,26.0,174.06,174.01,28.75486615]
[1747580697463,26.0,174.06,174.02,28.75486615]
[1747580697982,5.74547543,174.05,174.02,28.75486615]
[1747580698776,5.74547543,174.05,174.01,28.75486615]
[1747580699464,5.74547543,174.05,173.98,8.3042]
[1747580699690,5.74547543,174.05,174.01,28.75486615]
[1747580699862,5.74547543,174.05,174.02,28.75486615]
[1747580700285,5.74547543,174.05,174.03,28.75486615]
[1747580700678,5.74547543,174.05,174.02,28.75486615]
[1747580701193,20.10916402,174.05,173.99,28.75486615]
[1747580701360,20.10916402,174.05,174.0,28.75486615]
[1747580701556,20.10916402,174.05,174.01,28.75486615]
[1747580701972,7.0,174.04,174.01,28.75486615]
[1747580702187,7.0,174.04,174.02,28.75486615]
[1747580702370,7.0,174.04,173.96,6.89777677]
[1747580702574,7.0,174.04,174.02,28.75486615]
[1747580703264,28.75486615,174.03,173.98,28.75486615]
[1747580703472,28.75486615,174.03,173.99,28.75486615]
[1747580703689,7.0,174.04,173.99,28.75486615]
[1747580703690,35.75486615,174.04,173.99,28.75486615]
[1747580704277,5.74613572,174.03,173.99,28.75486615]
[1747580704480,12.74588292,174.04,174.0,28.75486615]
[1747580704687,26.0,174.06,174.03,28.75486615]
[1747580704996,26.0,174.06,174.02,28.75486615]
[1747580705407,26.0,174.06,173.96,1.14936322]
[1747580705702,5.74572174,174.05,174.02,28.75486615]